bitfinex-derivatives/quotes_SOLF0:USTF0_20250818
["timestamp","ask_amount","ask_price","bid_price","bid_amount"]
[1755536951018,3.05,182.22,182.19,0.03773316]
[1755536952019,50.0,182.24,182.19,0.03773316]
[1755536952319,3.05,182.21,182.19,0.03773316]
[1755536953420,53.05,182.24,182.19,1.88773316]
[1755536953613,7.06639476,182.23,182.19,1.88773316]
[1755536953813,7.06639476,182.22,182.19,0.03773316]
[1755536954012,3.05,182.22,182.19,0.03773316]
[1755536954208,3.05,182.21,182.19,0.03773316]
[1755536954416,3.05,182.23,182.19,0.03773316]
[1755536954609,4.01759707,182.22,182.19,0.03773316]
[1755536954815,3.05,182.2,182.19,0.03773316]
[1755536956628,3.05,182.23,182.19,1.88773316]
[1755536956920,4.01461405,182.22,182.19,0.03773316]
[1755536957121,3.05,182.23,182.19,0.03773316]
[1755536957321,7.06465426,182.22,182.19,0.03773316]
[1755536957523,3.05,182.22,182.19,0.03773316]
[1755536957924,50.0,182.24,182.19,0.03773316]
[1755536958126,3.05,182.21,182.19,0.03773316]
[1755536958518,50.0,182.24,182.19,0.03773316]
[1755536958713,3.05,182.21,182.19,0.03773316]
[1755536960019,3.05,182.23,182.19,0.03773316]
[1755536960219,4.01480434,182.22,182.19,0.03773316]
[1755536960419,3.05,182.23,182.19,5.52343316]
[1755536960616,3.05,182.22,182.19,5.52343316]
[1755536961025,3.05,182.22,182.19,0.03773316]
[1755536961819,3.05,182.22,182.19,1.88773316]
[1755536962326,3.05,182.22,182.19,7.37323316]
[1755536966035,189.96,182.24,182.2,7.3353]
[1755536966240,4.02063923,182.23,182.2,7.3353]
[1755536966440,4.02063923,182.22,182.2,7.3353]
[1755536966643,186.9,182.24,182.2,1.85]
[1755536966843,186.9,182.24,182.19,5.52333316]
[1755536966844,7.08281924,182.23,182.19,5.52333316]
[1755536967045,7.08281924,182.22,182.19,5.52333316]
[1755536967343,4.02281924,182.21,182.19,5.52333316]
[1755536967536,4.02281924,182.21,182.19,0.03773316]
[1755536967732,3.06,182.22,182.19,0.03773316]
[1755536967939,4.02416221,182.21,182.19,0.03773316]
[1755536968137,3.06,182.22,182.19,0.03773316]
[1755536968338,4.02433167,182.21,182.19,0.03773316]
[1755536968635,3.06,182.22,182.19,0.03773316]
[1755536968841,3.06,182.2,182.19,0.03773316]
[1755536969137,7.08595495,182.2,182.19,0.03773316]
[1755536969342,4.02595495,182.2,182.19,7.37343316]
[1755536969647,189.96,182.24,182.2,1.85]
[1755536969847,4.02779754,182.23,182.2,1.85]
[1755536970145,50.0,182.28,182.22,5.71358304]
[1755536970343,368.74,182.31,182.19,0.03773316]
[1755536970344,4.02923812,182.27,182.25,3.86358304]
[1755536970547,136.74,182.3,182.25,3.86358304]
[1755536970548,139.8,182.3,182.25,5.71358304]
[1755536970739,4.02735434,182.29,182.25,3.86358304]
[1755536970949,4.02735434,182.28,182.26,1.85]
[1755536971150,139.8,182.3,182.25,11.19738304]
[1755536971449,7.08509007,182.29,182.25,11.19738304]
[1755536971644,4.02509007,182.28,182.25,11.19738304]
[1755536971850,4.02509007,182.27,182.25,11.19738304]
[1755536972049,3.06,182.29,182.25,11.19738304]
[1755536972353,4.0248093,182.28,182.25,11.19738304]
[1755536972549,4.0248093,182.27,182.25,11.19738304]
[1755536972750,3.06,182.29,182.25,11.19738304]
[1755536972946,4.02541349,182.28,182.25,5.71358304]
[1755536973251,3.06,182.29,182.25,5.71358304]
[1755536973450,4.0238392,182.28,182.25,5.71358304]
[1755536973750,3.06,182.29,182.25,5.71358304]
[1755536973948,4.02363545,182.28,182.25,5.71358304]
[1755536974149,3.06,182.29,182.25,5.71358304]
[1755536974348,136.74,182.3,182.27,1.85]
[1755536974548,4.02232047,182.29,182.27,1.85]
[1755536974751,136.74,182.3,182.27,1.85]
[1755536975051,4.02352811,182.29,182.27,1.85]
[1755536975240,139.8,182.3,182.27,1.85]
[1755536975439,4.02197767,182.29,182.27,1.85]
[1755536975644,139.8,182.3,182.27,1.85]
[1755536975847,4.02178369,182.29,182.27,1.85]
[1755536976045,136.74,182.3,182.25,3.86358304]
[1755536976245,136.74,182.3,182.27,1.85]
[1755536976857,50.0,182.34,182.28,3.86358304]
[1755536977153,4.02272786,182.33,182.31,1.85]
[1755536977353,186.72,182.34,182.28,3.86358304]
[1755536977556,4.02018279,182.33,182.3,1.89027552]
[1755536977854,186.72,182.34,182.32,5.4818]
[1755536978151,139.84,182.37,182.31,3.86358304]
[1755536978350,139.84,182.37,182.35,5.4808]
[1755536978546,136.78,182.37,182.34,5.71358304]
[1755536978946,139.84,182.37,182.34,3.86358304]
[1755536979155,3.06,182.36,182.34,0.04213755]
[1755536979852,136.78,182.37,182.34,0.04213755]
[1755536979853,3.06,182.35,182.34,0.04213755]
[1755536983859,136.78,182.37,182.35,1.85]
[1755536984661,136.78,182.37,182.34,5.52323755]
[1755536984961,139.84,182.37,182.34,0.04213755]
[1755536985558,136.78,182.37,182.34,1.89213755]
[1755536985760,136.78,182.37,182.34,0.04213755]
[1755536986061,136.78,182.37,182.36,1.85]
[1755536986554,136.78,182.37,182.36,7.3306]
[1755536986862,136.78,182.37,182.34,0.04213755]
[1755536987056,136.78,182.37,182.34,1.89213755]
[1755536987361,136.78,182.37,182.35,1.85]
[1755536987954,136.78,182.37,182.35,7.3308]
[1755536988761,139.84,182.37,182.34,5.52323755]
[1755536989862,3.06,182.35,182.34,0.04213755]
[1755536997560,3.06,182.35,182.25,1.85]
[1755536998159,3.06,182.35,182.28,5.4828]
[1755536998360,3.06,182.35,182.25,1.85]
[1755536998564,3.98532211,182.34,182.25,1.85]
[1755536998763,50.0,182.36,182.25,1.85]
[1755536998764,3.07,182.32,182.25,1.85]
[1755536998965,3.10569687,182.32,182.25,1.85]
[1755536999465,3.10569687,182.32,182.25,7.3338]
[1755536999869,3.10569687,182.32,182.26,5.4834]
[1755537000466,0.03569687,182.32,182.27,3.86358304]
[1755537000770,0.03569687,182.32,182.31,1.89]
[1755537000969,0.03569687,182.32,182.31,7.3721]
[1755537003270,0.03569687,182.32,182.26,1.89]
[1755537003476,136.64,182.31,182.25,5.75358304]
[1755537003774,136.64,182.31,182.27,5.4831]
[1755537003976,136.64,182.31,182.27,7.3731]
[1755537004273,136.64,182.31,182.28,1.89]
[1755537004675,136.64,182.31,182.26,7.3736]
[1755537004861,3.07,182.3,182.26,7.3736]
[1755537005369,136.64,182.31,182.26,5.4836]
[1755537005577,136.64,182.31,182.27,1.89]
[1755537005777,139.71,182.31,182.27,1.89]
[1755537007875,3.07,182.3,182.27,1.89]
[1755537008473,3.07,182.3,182.25,9.34738304]
[1755537008665,136.64,182.31,182.25,3.86358304]
[1755537008867,3.07,182.28,182.25,3.86358304]
[1755537009774,3.07,182.27,182.22,125.0921735]
[1755537009968,3.07,182.25,182.22,125.0921735]
[1755537010167,3.07,182.25,182.22,121.22859046]
[1755537010574,136.66,182.26,182.22,128.60339046]
[1755537010777,139.73,182.26,182.22,128.60339046]
[1755537010979,139.73,182.26,182.22,123.11859046]
[1755537011182,136.66,182.26,182.22,125.0921735]
[1755537011371,136.66,182.26,182.24,1.89]
[1755537011975,136.66,182.26,182.22,125.0921735]
[1755537012280,136.66,182.26,182.25,1.89]
[1755537012484,136.66,182.26,182.25,7.3739]
[1755537012679,0.0370794,182.28,182.25,7.3739]
[1755537012880,0.0370794,182.28,182.25,3.86358304]
[1755537013083,0.0370794,182.28,182.26,5.4833]
[1755537013276,0.0370794,182.28,182.27,1.89]
[1755537013677,0.0370794,182.28,182.26,5.4835]
[1755537013879,0.0370794,182.28,182.26,7.3735]
[1755537014277,0.0370794,182.28,182.25,9.34738304]
[1755537014483,0.0370794,182.28,182.25,11.23738304]
[1755537014685,0.0370794,182.28,182.26,1.89]
[1755537014977,0.0370794,182.28,182.26,7.3734]
[1755537015177,3.1070794,182.28,182.22,123.11859046]
[1755537016278,0.0370794,182.28,182.23,1.89]
[1755537016585,0.0370794,182.28,182.25,1.89]
[1755537016780,0.0370794,182.28,182.26,1.89]
[1755537017183,0.0370794,182.28,182.27,1.89]
[1755537017888,0.0370794,182.28,182.27,7.3733]
[1755537018083,0.0370794,182.28,182.27,1.89]
[1755537018484,0.0370794,182.28,182.27,7.3733]
[1755537018681,0.0370794,182.28,182.24,3.86358304]
[1755537018884,0.0370794,182.28,182.26,1.89]
[1755537019089,0.0370794,182.28,182.25,5.4838]
[1755537019393,3.07,182.27,182.24,3.86358304]
[1755537020089,0.0370794,182.28,182.25,1.89]
[1755537020289,0.0370794,182.28,182.27,1.89]
[1755537020690,0.0370794,182.28,182.27,7.3733]
[1755537020890,0.0370794,182.28,182.27,11.23688304]
[1755537021291,3.07,182.35,182.3,3.86358304]
[1755537021491,4.02533681,182.34,182.3,5.75358304]
[1755537021686,4.02533681,182.33,182.3,5.75358304]
[1755537021887,3.07,182.35,182.3,5.75358304]
[1755537022089,4.02577683,182.34,182.3,5.75358304]
[1755537022292,4.02577683,182.33,182.3,5.75358304]
[1755537022487,3.09,182.34,182.3,5.78884101]
[1755537023192,3.09,182.34,182.31,5.4821]
[1755537024091,3.09,182.35,182.3,3.89884101]
[1755537024291,4.02554121,182.34,182.3,3.89884101]
[1755537024589,3.09,182.32,182.3,3.89884101]
[1755537025497,139.75,182.36,182.3,3.89884101]
[1755537025697,50.0,182.39,182.3,3.89884101]
[1755537025698,4.02553276,182.35,182.3,3.89884101]
[1755537025900,50.0,182.39,182.33,3.86358304]
[1755537026098,4.02669032,182.38,182.34,1.88]
[1755537026291,4.02669032,182.37,182.34,1.88]
[1755537026493,139.73,182.39,182.34,1.88]
[1755537026698,3.09,182.37,182.34,0.03685191]
[1755537026998,136.64,182.39,182.34,0.03685191]
[1755537026999,3.09,182.35,182.34,0.03685191]
[1755537027194,136.64,182.39,182.34,0.03685191]
[1755537027401,4.02647766,182.38,182.34,0.03685191]
[1755537027597,3.09,182.36,182.34,0.03685191]
[1755537027791,136.64,182.39,182.34,0.03685191]
[1755537027988,4.02610612,182.38,182.34,0.03685191]
[1755537028189,3.09,182.36,182.34,0.03685191]
[1755537028393,3.09,182.37,182.34,0.03685191]
[1755537028591,3.09,182.35,182.34,0.03685191]
[1755537028792,136.64,182.39,182.34,0.03685191]
[1755537028996,3.09,182.37,182.34,0.03685191]
[1755537029301,3.09,182.36,182.34,0.03685191]
[1755537030005,3.09,182.35,182.34,0.03685191]
[1755537030804,139.73,182.39,182.34,1.91685191]
[1755537031105,7.11802918,182.38,182.34,1.91685191]
[1755537031304,4.02802918,182.37,182.34,1.91685191]
[1755537031501,136.64,182.39,182.34,5.51805191]
[1755537031703,3.09,182.37,182.34,5.51805191]
[1755537033806,3.09,182.37,182.34,0.03685191]
[1755537034001,3.09,182.36,182.34,0.03685191]
[1755537034204,136.64,182.39,182.34,0.03685191]
[1755537034402,3.09,182.35,182.34,0.03685191]
[1755537036910,3.09,182.37,182.34,0.03685191]
[1755537037109,3.09,182.36,182.34,0.03685191]
[1755537037714,3.09,182.38,182.34,0.03685191]
[1755537037913,3.09,182.36,182.34,0.03685191]
[1755537038212,136.64,182.39,182.34,5.51805191]
[1755537038411,3.09,182.37,182.34,0.03685191]
[1755537039014,136.64,182.39,182.35,1.88]
[1755537039315,4.02774677,182.38,182.35,1.88]
[1755537039515,136.64,182.39,182.36,5.4804]
[1755537039710,4.02773895,182.38,182.36,5.4804]
[1755537039904,136.64,182.39,182.36,5.4804]
[1755537040106,53.09,182.43,182.37,5.74358304]
[1755537040313,140.5886401,182.42,182.38,1.88]
[1755537040511,4.0286401,182.41,182.38,1.88]
[1755537040711,4.0286401,182.4,182.38,7.3598]
[1755537041016,136.56,182.42,182.39,1.88]
[1755537041204,4.02766517,182.41,182.4,1.88]
[1755537042215,4.02766517,182.41,182.4,7.3591]
[1755537042812,3.09,182.4,182.38,0.03473459]
[1755537043013,139.65,182.42,182.38,0.03473459]
[1755537043314,7.13311147,182.41,182.38,0.03473459]
[1755537043516,3.09,182.41,182.38,0.03473459]
[1755537043814,3.09,182.4,182.38,0.03473459]
[1755537044215,136.56,182.42,182.38,0.03473459]
[1755537044418,4.04244279,182.41,182.38,0.03473459]
[1755537044611,3.09,182.41,182.38,0.03473459]
[1755537045217,3.09,182.4,182.38,0.03473459]
[1755537046418,136.56,182.42,182.38,0.03473459]
[1755537046615,3.09,182.4,182.38,0.03473459]
[1755537046816,3.09,182.39,182.38,0.03473459]
[1755537048121,3.09,182.38,182.3,5.74358304]
[1755537048320,140.5575261,182.37,182.3,5.74358304]
[1755537048616,136.52,182.37,182.3,5.74358304]
[1755537049011,136.52,182.37,182.32,7.3918]
[1755537049317,3.12923654,182.35,182.31,1.91]
[1755537049517,3.12923654,182.35,182.32,5.4818]
[1755537049814,3.12923654,182.35,182.32,7.3918]
[1755537050212,0.03923654,182.35,182.32,7.3918]
[1755537050422,0.03923654,182.35,182.34,1.91]
[1755537050712,3.09,182.44,182.36,3.86358304]
[1755537050912,4.03884323,182.43,182.39,7.3895]
[1755537051111,4.03884323,182.42,182.39,7.3895]
[1755537051312,3.09,182.43,182.39,5.4795]
[1755537051517,7.12806661,182.42,182.39,5.4795]
[1755537051715,3.09,182.42,182.39,5.4795]
[1755537051913,3.09,182.42,182.4,5.4793]
[1755537052213,136.52,182.45,182.39,3.90529348]
[1755537052409,136.52,182.45,182.42,5.4786]
[1755537052811,139.43,182.45,182.42,5.4786]
[1755537053218,2.91,182.44,182.41,5.479]
[1755537053407,2.91,182.42,182.39,0.04171044]
[1755537053810,139.43,182.45,182.39,5.52121044]
[1755537054014,4.04117477,182.44,182.39,5.52121044]
[1755537054210,6.95117477,182.43,182.39,0.04171044]
[1755537054414,2.91,182.43,182.39,1.97171044]
[1755537054616,371.35,182.5,182.42,3.86358304]
[1755537054814,140.54175383,182.49,182.42,3.86358304]
[1755537055013,4.04175383,182.48,182.42,3.86358304]
[1755537055212,2.91,182.5,182.43,1.93]
[1755537055411,2.91,182.48,182.44,0.03600111]
[1755537055616,136.5,182.52,182.44,0.03600111]
[1755537055617,2.91,182.47,182.44,0.03600111]
[1755537056214,2.91,182.47,182.45,5.4777]
[1755537056415,2.91,182.51,182.44,0.03600111]
[1755537056618,4.04051127,182.5,182.44,0.03600111]
[1755537056819,2.91,182.47,182.44,0.03600111]
[1755537057017,136.5,182.52,182.44,0.03600111]
[1755537057212,2.91,182.47,182.44,0.03600111]
[1755537057416,2.91,182.47,182.44,5.51410111]
[1755537057824,2.91,182.47,182.44,0.03600111]
[1755537058023,2.91,182.47,182.45,5.4779]
[1755537058919,2.91,182.51,182.44,0.03600111]
[1755537059120,2.91,182.49,182.44,0.03600111]
[1755537059318,2.91,182.47,182.44,0.03600111]
[1755537059721,2.91,182.47,182.44,5.51400111]
[1755537061826,2.91,182.5,182.44,0.03600111]
[1755537062023,4.03852869,182.49,182.44,0.03600111]
[1755537062221,50.0,182.51,182.44,0.03600111]
[1755537062222,2.91,182.46,182.44,0.03600111]
[1755537062825,2.91,182.45,182.44,0.03600111]
[1755537063338,52.91,182.51,182.45,1.93]
[1755537063521,4.03985585,182.5,182.46,1.93]
[1755537063718,2.91,182.5,182.46,7.4074]
[1755537063917,50.0,182.51,182.46,7.4074]
[1755537063918,50.0,182.51,182.46,5.4774]
[1755537064122,2.91,182.49,182.46,5.4774]
[1755537064527,50.0,182.51,182.47,5.4772]
[1755537064734,4.03899702,182.5,182.47,7.4072]
[1755537064933,52.91,182.51,182.47,7.4072]
[1755537065130,2.91,182.49,182.45,3.86358304]
[1755537065331,0.03802056,182.5,182.44,0.03600111]
[1755537065332,2.91,182.48,182.44,0.03600111]
[1755537065528,2.91,182.48,182.44,1.96600111]
[1755537065926,2.91,182.48,182.45,5.4777]
[1755537067336,2.94802056,182.5,182.45,7.4077]
[1755537067534,0.03802056,182.5,182.45,3.86358304]
[1755537067735,0.03802056,182.5,182.45,5.79358304]
[1755537068035,2.91,182.49,182.45,5.79358304]
[1755537068230,0.03802056,182.5,182.44,1.96600111]
[1755537068543,4.03591315,182.49,182.45,1.93]
[1755537068732,0.03802056,182.5,182.44,1.96600111]
[1755537069040,4.03636939,182.49,182.45,1.93]
[1755537069340,2.94802056,182.5,182.45,1.93]
[1755537069538,4.03514005,182.49,182.45,1.93]
[1755537069738,2.94802056,182.5,182.45,1.93]
[1755537070332,2.94802056,182.5,182.45,7.4077]
[1755537070740,2.91,182.49,182.45,7.4077]
[1755537070932,2.91,182.48,182.44,5.51420111]
[1755537071134,2.91,182.48,182.44,7.44420111]
[1755537072227,2.94802056,182.5,182.45,7.4079]
[1755537072431,0.03802056,182.5,182.45,7.4079]
[1755537072740,2.94802056,182.5,182.46,7.4074]
[1755537072937,0.03802056,182.5,182.47,1.93]
[1755537073139,2.91,182.49,182.46,3.86358304]
[1755537073435,0.03802056,182.5,182.46,5.79358304]
[1755537073638,0.03802056,182.5,182.46,11.27108304]
[1755537073840,2.94802056,182.5,182.46,11.27108304]
[1755537074445,0.03802056,182.5,182.47,7.4072]
[1755537075139,0.03802056,182.5,182.49,1.93]
[1755537075536,0.03802056,182.5,182.49,11.27028304]
[1755537076136,136.42,182.53,182.52,7.4058]
[1755537076438,52.91,182.56,182.52,11.26938304]
[1755537076646,4.03886044,182.55,182.52,3.86358304]
[1755537076941,2.91,182.56,182.52,5.79358304]
[1755537077439,2.91,182.56,182.55,1.93]
[1755537077440,0.03722973,182.56,182.55,1.93]
[1755537078636,0.03722973,182.56,182.55,7.4049]
[1755537079545,0.03722973,182.56,182.55,1.93]
[1755537079944,0.03722973,182.56,182.55,7.4049]
[1755537081440,0.03722973,182.56,182.55,5.4749]
[1755537084538,136.36,182.63,182.6,5.4734]
[1755537084743,136.36,182.63,182.55,1.92]
[1755537084744,2.92,182.62,182.56,3.86358304]
[1755537085244,2.92,182.62,182.59,5.4734]
[1755537085647,2.92,182.62,182.56,3.86358304]
[1755537086053,2.92,182.61,182.59,5.51298834]
[1755537086658,2.92,182.61,182.6,5.4734]
[1755537086963,2.92,182.61,182.59,0.03938834]
[1755537087355,2.92,182.61,182.59,5.51288834]
[1755537087951,2.92,182.6,182.59,0.03938834]
[1755537089963,2.92,182.63,182.59,1.95938834]
[1755537090557,136.26,182.64,182.6,5.4734]
[1755537090757,2.92,182.62,182.6,5.4734]
[1755537090958,136.26,182.64,182.61,5.4731]
[1755537090959,139.18,182.64,182.61,5.4731]
[1755537091166,139.18,182.64,182.6,1.92]
[1755537091662,139.18,182.64,182.62,5.4727]
[1755537091964,136.26,182.64,182.61,1.92]
[1755537092164,136.26,182.64,182.63,5.4725]
[1755537093161,136.26,182.64,182.62,5.4727]
[1755537093457,136.26,182.64,182.59,5.82297138]
[1755537093657,136.26,182.64,182.62,5.4726]
[1755537093862,2.92,182.67,182.62,1.92]
[1755537094064,2.92,182.67,182.62,5.78358304]
[1755537094259,2.92,182.67,182.63,1.92]
[1755537094664,2.92,182.67,182.63,1.95578468]
[1755537095667,2.92,182.67,182.64,1.92]
[1755537096167,2.92,182.67,182.65,5.4717]
[1755537096369,50.0,182.7,182.64,1.92]
[1755537096564,50.0,182.7,182.65,5.78358304]
[1755537096565,4.02881143,182.69,182.65,5.78358304]
[1755537096768,139.14,182.7,182.67,5.4711]
[1755537097266,139.14,182.7,182.68,5.4708]
[1755537097467,136.22,182.7,182.65,3.86358304]
[1755537097675,136.22,182.7,182.67,0.03677865]
[1755537097969,136.22,182.7,182.67,1.95677865]
[1755537098365,136.22,182.7,182.69,1.92]
[1755537098774,2.92,182.73,182.7,5.4702]
[1755537098968,2.92,182.76,182.7,1.92]
[1755537099268,2.92,182.76,182.67,0.03677865]
[1755537099269,4.02835269,182.75,182.71,5.78358304]
[1755537099465,367.92,182.82,182.74,3.86358304]
[1755537099669,143.14753252,182.81,182.74,3.86358304]
[1755537099867,4.02753252,182.8,182.74,3.86358304]
[1755537100064,2.92,182.78,182.74,3.86358304]
[1755537100365,2.92,182.76,182.71,1.92]
[1755537100670,2.92,182.76,182.75,0.03501548]
[1755537100965,2.92,182.8,182.75,0.03501548]
[1755537101168,2.92,182.78,182.75,0.03501548]
[1755537101665,139.12,182.81,182.75,0.03501548]
[1755537101872,140.17683496,182.8,182.76,1.92]
[1755537102066,2.92,182.78,182.75,0.03501548]
[1755537102671,2.92,182.79,182.75,0.03501548]
[1755537102868,136.20014021,182.8,182.75,0.03501548]
[1755537102869,2.92,182.77,182.75,0.03501548]
[1755537104260,0.04014021,182.8,182.75,0.03501548]
[1755537104467,136.20014021,182.8,182.76,7.3886]
[1755537104664,139.12014021,182.8,182.76,1.92]
[1755537105061,2.92,182.79,182.76,1.92]
[1755537105261,136.20014021,182.8,182.76,1.92]
[1755537105462,136.20014021,182.8,182.75,0.03501548]
[1755537105463,8.90548313,182.94,182.8,1.88]
[1755537105660,8.9782247,182.98,182.8,1.88]
[1755537105661,2.92,182.92,182.85,3.86358304]
[1755537105965,140.14295691,182.91,182.85,3.86358304]
[1755537106164,3.99940805,182.9,182.87,1.87]
[1755537106364,136.14,182.91,182.87,1.87]
[1755537106671,139.06,182.91,182.85,3.86358304]
[1755537106977,2.92,182.88,182.87,0.0353662]
[1755537107368,6.91940783,182.88,182.87,0.0353662]
[1755537109072,6.91940783,182.88,182.78,7.91488879]
[1755537109266,3.99159859,182.87,182.78,7.91488879]
[1755537109472,139.02,182.86,182.78,1.87]
[1755537109670,136.1,182.85,182.78,1.87]
[1755537110371,136.1,182.85,182.81,1.91]
[1755537110578,136.1,182.85,182.8,0.03707818]
[1755537110977,2.92,182.83,182.8,0.03707818]
[1755537112170,136.1,182.85,182.8,0.03707818]
[1755537112576,139.0,182.85,182.8,1.94707818]
[1755537112774,2.9,182.84,182.8,5.50427818]
[1755537113372,2.9,182.84,182.8,0.03707818]
[1755537114280,2.9,182.83,182.8,0.03707818]
[1755537114575,2.9,182.94,182.81,1.91]
[1755537114773,140.05110587,182.93,182.87,5.4653]
[1755537114978,3.99110587,182.92,182.87,5.4653]
[1755537115167,136.06,182.93,182.87,5.4653]
[1755537115368,136.06,182.93,182.89,1.91]
[1755537116173,2.9,182.94,182.89,1.91]
[1755537116373,3.99071762,182.93,182.89,1.91]
[1755537116580,2.9,182.94,182.89,1.91]
[1755537117172,3.99031161,182.93,182.89,1.91]
[1755537117378,139.14,182.95,182.89,1.91]
[1755537117571,2.9,182.93,182.89,1.91]
[1755537118374,136.24,182.95,182.89,1.91]
[1755537118680,140.14841175,182.94,182.88,0.03592075]
[1755537118881,2.9,182.93,182.89,5.4647]
[1755537119283,2.9,182.93,182.89,7.3747]
[1755537119479,2.9,182.93,182.89,1.91]
[1755537119676,2.9,182.93,182.88,0.03592075]
[1755537119891,2.9,182.91,182.88,0.03592075]
[1755537120177,136.16,182.94,182.88,0.03592075]
[1755537120377,2.9,182.92,182.88,0.03592075]
[1755537121082,2.9,182.97,182.89,1.91]
[1755537121278,140.09296114,182.96,182.89,1.91]
[1755537121477,3.99296114,182.95,182.89,1.91]
[1755537121685,136.1,182.96,182.89,1.91]
[1755537121686,2.9,182.93,182.89,1.91]
[1755537121978,2.9,182.92,182.91,0.03447887]
[1755537122386,2.9,182.92,182.86,7.3754]
[1755537122678,2.9,182.92,182.9,0.03702542]
[1755537122883,2.9,182.95,182.9,0.03702542]
[1755537123076,3.99237859,182.94,182.9,0.03702542]
[1755537123280,6.89237859,182.93,182.9,0.03702542]
[1755537123482,3.99237859,182.92,182.9,0.03702542]
[1755537123685,2.9,182.93,182.9,0.03702542]
[1755537123880,3.98997225,182.92,182.9,0.03702542]
[1755537124186,2.9,182.91,182.9,0.03702542]
[1755537124387,6.89024783,182.91,182.9,0.03702542]
[1755537124591,2.9,182.89,182.76,1.95]
[1755537124786,2.9,182.87,182.76,1.95]
[1755537124982,3.99024783,182.86,182.76,1.95]
[1755537125176,3.99024783,182.85,182.76,1.95]
[1755537125480,3.99024783,182.84,182.76,1.95]
[1755537125780,3.99024783,182.83,182.79,0.03748741]
[1755537126181,2.9,182.83,182.79,0.03748741]
[1755537126379,3.99129323,182.82,182.79,0.03748741]
[1755537126581,2.9,182.87,182.79,0.03748741]
[1755537126780,2.9,182.85,182.79,0.03748741]
[1755537126981,2.9,182.83,182.79,0.03748741]
[1755537127180,3.99113273,182.82,182.79,0.03748741]
[1755537127376,6.89113273,182.81,182.79,0.03748741]
[1755537127577,2.9,182.85,182.79,0.03748741]
[1755537127783,6.89332767,182.84,182.79,1.98748741]
[1755537127986,6.89332767,182.83,182.79,0.03748741]
[1755537128285,2.9,182.81,182.79,0.03748741]
[1755537128485,2.9,182.8,182.79,0.03748741]
[1755537128882,515.43037192,182.88,182.79,0.03748741]
[1755537129189,8.33950618,182.87,182.79,0.03748741]
[1755537129381,2.9,182.82,182.79,0.03748741]
[1755537129687,515.43037192,182.88,182.79,0.03748741]
[1755537129688,3.99514808,182.81,182.79,0.03748741]
[1755537129885,6.89514808,182.8,182.79,0.03748741]
[1755537130187,3.99514808,182.8,182.79,0.03748741]
[1755537130387,136.16,182.81,182.79,0.03748741]
[1755537131288,4.00072444,182.8,182.79,0.03748741]
[1755537131790,136.16,182.81,182.79,0.03748741]
[1755537132787,136.16,182.81,182.79,1.98748741]
[1755537133187,136.16,182.81,182.79,0.03748741]
[1755537133687,139.06,182.81,182.79,0.03748741]
[1755537133889,6.9069525,182.8,182.79,0.03748741]
[1755537135790,4.0069525,182.8,182.79,0.03748741]
[1755537136291,136.16,182.81,182.79,1.98748741]
[1755537136590,8.88548313,182.87,182.79,0.03748741]
[1755537136788,190.15865266,182.86,182.79,0.03748741]
[1755537136983,4.01865266,182.85,182.79,0.03748741]
[1755537137181,4.01865266,182.84,182.79,0.03748741]
[1755537137383,4.01865266,182.83,182.79,1.98748741]
[1755537137583,4.01865266,182.82,182.79,1.98748741]
[1755537137783,4.01865266,182.81,182.8,1.95]
[1755537138890,4.01865266,182.81,182.8,7.4174]
[1755537139091,186.14,182.86,182.8,1.95]
[1755537139293,4.02997603,182.85,182.81,1.95]
[1755537139590,4.02997603,182.84,182.81,7.417]